bitfinex/quotes_BTCUSD_20251007
["timestamp","ask_amount","ask_price","bid_price","bid_amount"]
[1759880777333,0.21240788,121580.0,121570.0,0.10927321]
[1759880777773,0.21240788,121580.0,121570.0,0.27478748]
[1759880777984,0.17814468,121580.0,121570.0,0.27478748]
[1759880778158,0.17368468,121580.0,121570.0,0.27478748]
[1759880778342,0.17368468,121580.0,121570.0,0.08427321]
[1759880778547,0.17368468,121580.0,121570.0,0.10427321]
[1759880778962,0.17368468,121580.0,121570.0,0.26878748]
[1759880779617,0.17368468,121580.0,121570.0,0.10427321]
[1759880779747,0.17368468,121580.0,121570.0,0.26878748]
[1759880779950,0.40724468,121580.0,121570.0,0.26878748]
[1759880781443,0.40724468,121580.0,121570.0,0.10427321]
[1759880781656,0.46932388,121580.0,121570.0,0.10427321]
[1759880781842,0.46932388,121580.0,121570.0,0.26878748]
[1759880782037,0.41170468,121580.0,121570.0,0.26878748]
[1759880782203,0.40724468,121580.0,121570.0,0.26878748]
[1759880783832,0.40728468,121580.0,121570.0,0.26878748]
[1759880786263,0.40728468,121580.0,121570.0,0.28521748]
[1759880787855,0.23565394,121580.0,121570.0,0.31841748]
[1759880788068,0.23565394,121580.0,121570.0,0.32808748]
[1759880788471,0.40015468,121580.0,121570.0,0.32808748]
[1759880788868,0.20267472,121580.0,121570.0,0.32808748]
[1759880792603,0.03817398,121580.0,121570.0,0.32808748]
[1759880792816,0.20267472,121580.0,121570.0,0.32808748]
[1759880794738,0.03817398,121580.0,121570.0,0.32808748]
[1759880795048,0.20267472,121580.0,121570.0,0.32808748]
[1759880795244,0.17715814,121600.0,121580.0,0.16450074]
[1759880795477,0.39804721,121590.0,121580.0,0.16450074]
[1759880795657,0.39856057,121590.0,121580.0,0.21413074]
[1759880796035,0.39856057,121590.0,121580.0,0.22380074]
[1759880796238,0.16500057,121590.0,121580.0,0.22380074]
[1759880796595,0.39856057,121590.0,121580.0,0.22380074]
[1759880797265,0.39856057,121590.0,121580.0,0.22480074]
[1759880797696,0.16500057,121590.0,121580.0,0.22480074]
[1759880797847,0.39856057,121590.0,121580.0,0.22480074]
[1759880798052,0.40756057,121590.0,121580.0,0.22580074]
[1759880798257,0.40756057,121590.0,121580.0,0.22480074]
[1759880798795,0.40756057,121590.0,121580.0,0.24480074]
[1759880798944,0.39856057,121590.0,121580.0,0.24380074]
[1759880799353,0.40569057,121590.0,121580.0,0.21009074]
[1759880800427,0.40569057,121590.0,121580.0,0.21109074]
[1759880800637,0.39856057,121590.0,121580.0,0.23595074]
[1759880801163,0.47173644,121590.0,121580.0,0.021]
[1759880801372,0.81173644,121590.0,121580.0,0.021]
[1759880802008,1.39207144,121590.0,121580.0,0.021]
[1759880802218,1.39207144,121590.0,121580.0,0.02]
[1759880803406,0.16450074,121580.0,121570.0,0.00101026]
[1759880803612,0.24449754,121580.0,121570.0,0.00101026]
[1759880803823,0.25162754,121580.0,121570.0,0.00101026]
[1759880804073,0.34164754,121580.0,121570.0,0.00101026]
[1759880804848,0.34164754,121580.0,121570.0,0.02201026]
[1759880805825,0.26165074,121580.0,121570.0,0.02201026]
[1759880810055,0.17609074,121580.0,121570.0,0.02201026]
[1759880810214,0.49521074,121580.0,121570.0,0.02201026]
[1759880811183,0.17609074,121580.0,121570.0,0.18652453]
[1759880811396,0.02219963,121590.0,121580.0,0.16450074]
[1759880811596,0.25575963,121590.0,121580.0,0.3171528]
[1759880813312,0.26475963,121590.0,121580.0,0.3181528]
[1759880813602,0.03119963,121590.0,121580.0,0.3181528]
[1759880813809,0.26475963,121590.0,121580.0,0.3285228]
[1759880814040,0.25575963,121590.0,121580.0,0.3275228]
[1759880814175,0.26175963,121590.0,121580.0,0.3275228]
[1759880814385,0.26175963,121590.0,121580.0,0.3325228]
[1759880814807,0.26175963,121590.0,121580.0,0.3275228]
[1759880815015,0.26175963,121590.0,121580.0,0.3495228]
[1759880815238,0.26175963,121590.0,121580.0,0.3485228]
[1759880815239,0.07319702,121590.0,121580.0,0.3485228]
[1759880816570,0.07319702,121590.0,121580.0,0.3515228]
[1759880820026,0.39799388,121600.0,121590.0,0.16448721]
[1759880820232,0.89799368,121600.0,121590.0,0.29556927]
[1759880820448,0.39850698,121600.0,121590.0,0.30467927]
[1759880821008,0.2340333,121600.0,121590.0,0.30467927]
[1759880821215,0.39850698,121600.0,121590.0,0.32467927]
[1759880821419,0.52509498,121600.0,121590.0,0.29401927]
[1759880821599,0.40563698,121600.0,121590.0,0.29401927]
[1759880822450,0.5076433,121600.0,121590.0,0.29401927]
[1759880822632,0.2340333,121600.0,121590.0,0.34466927]
[1759880823409,0.39850698,121600.0,121590.0,0.32567927]
[1759880823757,0.2340333,121600.0,121590.0,0.32567927]
[1759880827306,0.2340333,121600.0,121590.0,0.29401927]
[1759880827307,0.40563698,121600.0,121590.0,0.29401927]
[1759880827584,0.49009378,121600.0,121590.0,0.021]
[1759880827806,2.14493278,121600.0,121590.0,0.021]
[1759880830454,2.14493278,121600.0,121590.0,0.001]
[1759880830659,2.22805484,121600.0,121590.0,0.001]
[1759880830865,5.80722084,121600.0,121590.0,0.001]
[1759880831123,5.81622084,121600.0,121590.0,0.002]
[1759880831335,0.92667584,121600.0,121590.0,0.002]
[1759880831570,5.81622084,121600.0,121580.0,0.00085902]
[1759880831784,1.63961421,121590.0,121580.0,0.00085902]
[1759880832001,1.71961101,121590.0,121580.0,0.00085902]
[1759880832212,1.72674101,121590.0,121580.0,0.00085902]
[1759880832422,1.72212101,121590.0,121580.0,0.00085902]
[1759880833633,1.72212101,121590.0,121580.0,0.00285902]
[1759880834091,1.72212101,121590.0,121580.0,0.00185902]
[1759880834253,1.72212101,121590.0,121580.0,0.00285902]
[1759880834482,1.73112101,121590.0,121580.0,0.00285902]
[1759880838385,5.65220107,121590.0,121580.0,0.00285902]
[1759880838556,0.76265607,121590.0,121580.0,0.00285902]
[1759880838751,5.67690891,121590.0,121580.0,0.00285902]
[1759880839174,6.04308301,121590.0,121580.0,0.00285902]
[1759880839413,1.15353801,121590.0,121580.0,0.00285902]
[1759880839631,6.04308301,121590.0,121580.0,0.00285902]
[1759880840359,0.81125801,121590.0,121580.0,0.00285902]
[1759880840563,5.70080301,121590.0,121580.0,0.00285902]
[1759880840819,5.94082491,121590.0,121580.0,0.00285902]
[1759880840983,6.33822891,121590.0,121580.0,0.00285902]
[1759880841382,6.08527591,121590.0,121580.0,0.00285902]
[1759880841585,6.33822891,121590.0,121580.0,0.00285902]
[1759880841837,1.44868391,121590.0,121580.0,0.00285902]
[1759880842003,7.17471417,121590.0,121580.0,0.00285902]
[1759880843202,2.28516917,121590.0,121580.0,0.00285902]
[1759880843407,7.17471417,121590.0,121580.0,0.00285902]
[1759880843616,2.28516917,121590.0,121580.0,0.00285902]
[1759880843806,6.51339417,121590.0,121580.0,0.00285902]
[1759880844050,7.17475417,121590.0,121580.0,0.00285902]
[1759880845194,2.28520917,121590.0,121580.0,0.00285902]
[1759880845395,1.62384917,121590.0,121580.0,0.00285902]
[1759880845599,2.03438311,121590.0,121580.0,0.00285902]
[1759880845812,2.12928174,121590.0,121580.0,0.00285902]
[1759880846020,2.41837474,121590.0,121580.0,0.00285902]
[1759880846162,1.03802768,121590.0,121580.0,0.00285902]
[1759880846367,0.53939921,121590.0,121580.0,0.00285902]
[1759880846606,1.61689484,121590.0,121580.0,0.00275402]
[1759880846807,1.61689484,121590.0,121580.0,0.22474476]
[1759880846808,0.16456,121590.0,121580.0,0.22474476]
[1759880847009,0.39804,121590.0,121580.0,0.24313476]
[1759880847737,0.079,121590.0,121580.0,0.32625682]
[1759880847911,0.31248,121590.0,121580.0,0.32625682]
[1759880848092,0.24248,121590.0,121580.0,0.32625682]
[1759880848507,0.009,121590.0,121580.0,0.32525682]
[1759880848702,0.0005133,121600.0,121590.0,0.16448721]
[1759880848904,0.2339933,121600.0,121590.0,0.30771927]
[1759880849108,0.2339933,121600.0,121590.0,0.32348927]
[1759880849839,0.40559698,121600.0,121590.0,0.11132206]
[1759880850046,0.40559698,121600.0,121590.0,0.27580927]
[1759880850244,0.3139901,121600.0,121590.0,0.29867927]
[1759880850452,0.3139901,121600.0,121590.0,0.31730927]
[1759880850610,0.3139901,121600.0,121590.0,0.33930927]
[1759880850806,0.2339933,121600.0,121590.0,0.33930927]
[1759880851258,0.39846698,121600.0,121590.0,0.33930927]
[1759880852131,0.2339933,121600.0,121590.0,0.33930927]
[1759880852475,0.39846698,121600.0,121590.0,0.33930927]
[1759880855988,0.39846698,121600.0,121590.0,0.32067927]
[1759880858603,0.39846698,121600.0,121590.0,0.33009927]
[1759880859406,0.2339933,121600.0,121590.0,0.33009927]
[1759880859917,0.39846698,121600.0,121590.0,0.33009927]
[1759880860295,0.0005133,121600.0,121590.0,0.33009927]
[1759880860497,0.2339533,121600.0,121590.0,0.33009927]
[1759880860695,0.2339533,121600.0,121590.0,0.33916927]
[1759880860997,0.2339533,121600.0,121590.0,0.34889927]
[1759880865462,0.39842698,121600.0,121590.0,0.34889927]
[1759880866278,0.0005133,121600.0,121590.0,0.34889927]
[1759880866684,0.2339133,121600.0,121590.0,0.34889927]
[1759880868233,0.16498698,121600.0,121590.0,0.34889927]
[1759880868662,0.0005133,121600.0,121590.0,0.34889927]
[1759880869808,0.0005133,121600.0,121590.0,0.7671419]
[1759880870404,0.0005133,121600.0,121590.0,0.34889927]
[1759880870614,0.0005133,121600.0,121590.0,0.7671419]
[1759880872233,0.0005133,121600.0,121590.0,0.37905117]
[1759880872609,0.0005133,121600.0,121590.0,0.7972938]
[1759880874389,0.0005133,121600.0,121590.0,1.0306938]
[1759880877374,0.0076433,121600.0,121590.0,0.32796117]
[1759880877580,0.59035961,121600.0,121590.0,0.13332206]
[1759880877785,0.67074761,121600.0,121590.0,0.27260927]
[1759880877993,0.67074761,121600.0,121590.0,0.10812206]
[1759880878200,0.82817961,121600.0,121590.0,0.10812206]
[1759880878402,0.89817961,121600.0,121590.0,0.10812206]
[1759880878620,0.89817961,121600.0,121590.0,0.025]
[1759880879378,0.89817961,121600.0,121590.0,0.003]
[1759880879621,0.97371641,121600.0,121590.0,0.003]
[1759880879815,0.89371961,121600.0,121590.0,0.02833]
[1759880880026,0.89371961,121600.0,121590.0,0.02533]
[1759880880227,0.89371961,121600.0,121590.0,0.02633]
[1759880880438,0.90271961,121600.0,121590.0,0.02633]
[1759880880844,0.47547698,121600.0,121590.0,0.02533]
[1759880881005,0.89371961,121600.0,121590.0,0.02533]
[1759880881409,0.89371961,121600.0,121590.0,0.04533]
[1759880882206,0.65322961,121600.0,121590.0,0.23360721]
[1759880882413,0.46834698,121600.0,121590.0,0.08761]
[1759880882617,0.88658961,121600.0,121590.0,0.06912]
[1759880882815,0.65322961,121600.0,121590.0,0.23360721]
[1759880883003,0.3038733,121600.0,121590.0,0.25209721]
[1759880883209,0.46834698,121600.0,121590.0,0.25209721]
[1759880884280,0.97371641,121600.0,121590.0,0.021]
[1759880884618,0.97817641,121600.0,121590.0,0.021]
[1759880885256,0.55547378,121600.0,121590.0,0.021]
[1759880885460,0.89346362,121600.0,121590.0,0.021]
[1759880885887,0.89346362,121600.0,121590.0,0.04533]
[1759880886326,0.89346362,121600.0,121590.0,0.021]
[1759880886716,0.89346362,121600.0,121590.0,0.18548721]
[1759880887065,0.89346362,121600.0,121590.0,0.20981721]
[1759880887727,0.47547698,121600.0,121590.0,0.20981721]
[1759880887940,0.89346362,121600.0,121590.0,0.20981721]
[1759880888094,0.47547698,121600.0,121590.0,0.20981721]
[1759880888504,0.89346362,121600.0,121590.0,0.021]
[1759880890493,0.89346362,121600.0,121590.0,0.04533]
[1759880890693,0.89346362,121600.0,121590.0,0.20981721]
[1759880891032,0.89346362,121600.0,121590.0,0.04533]
[1759880892515,0.89346362,121600.0,121590.0,0.20981721]
[1759880893214,0.88633362,121600.0,121590.0,0.23360721]
[1759880893424,0.71314973,121600.0,121590.0,0.24296721]
[1759880893813,0.72027973,121600.0,121590.0,0.021]
[1759880894009,0.71314973,121600.0,121590.0,0.04533]
[1759880894206,0.71314973,121600.0,121590.0,0.20981721]
[1759880895068,0.71314973,121600.0,121590.0,0.23360721]
[1759880895596,1.22272317,121600.0,121590.0,0.021]
[1759880895806,2.49402081,121600.0,121590.0,0.021]
[1759880896010,6.6013002,121600.0,121590.0,0.021]
[1759880896232,6.2694442,121600.0,121590.0,0.021]
[1759880896458,7.04046516,121600.0,121590.0,0.02]
[1759880896664,4.10999321,121590.0,121580.0,0.00075402]
[1759880896875,6.31050399,121590.0,121580.0,0.00075402]
[1759880897082,6.03037135,121590.0,121580.0,0.00075402]
[1759880897284,1.51962935,121590.0,121580.0,0.00075402]
[1759880897503,6.09114835,121590.0,121580.0,0.00075402]
[1759880897704,6.40917435,121590.0,121580.0,0.00075402]
[1759880898242,6.29394135,121590.0,121580.0,0.00075402]
[1759880898643,1.51962935,121590.0,121580.0,0.00075402]
[1759880898856,6.34333535,121590.0,121580.0,0.00075402]
[1759880899057,6.31609535,121590.0,121580.0,0.00075402]
[1759880899465,6.22601435,121590.0,121580.0,0.00075402]
[1759880899657,1.51962935,121590.0,121580.0,0.00075402]
[1759880899858,6.26165335,121590.0,121580.0,0.00275402]
[1759880900099,6.31186935,121590.0,121580.0,0.00275402]
[1759880900301,5.84268935,121590.0,121580.0,0.00275402]
[1759880900501,6.26165335,121590.0,121580.0,0.00275402]
[1759880900745,6.26166335,121590.0,121580.0,0.00275402]
[1759880901077,1.53762935,121590.0,121580.0,0.00275402]
[1759880901294,6.31105635,121590.0,121580.0,0.00275402]
[1759880901479,6.32161835,121590.0,121580.0,0.00275402]
[1759880901681,1.53762935,121590.0,121580.0,0.00275402]
[1759880901884,6.41342135,121590.0,121580.0,0.00275402]
[1759880902085,1.53762935,121590.0,121580.0,0.00275402]
[1759880902328,6.41342135,121590.0,121580.0,0.00275402]
[1759880902575,6.75570135,121590.0,121580.0,0.00275402]
[1759880902786,6.73806235,121590.0,121580.0,0.00275402]
[1759880903061,6.75539135,121590.0,121580.0,0.00275402]
[1759880903431,1.87990935,121590.0,121580.0,0.00275402]
[1759880903871,6.65312635,121590.0,121580.0,0.00275402]
[1759880904080,6.62366835,121590.0,121580.0,0.00275402]
[1759880904293,1.88900935,121590.0,121580.0,0.00275402]
[1759880904679,6.53276835,121590.0,121580.0,0.00275402]
[1759880905227,5.81950035,121590.0,121580.0,0.00275402]
[1759880905420,1.88900935,121590.0,121580.0,0.00275402]
[1759880905601,6.56495735,121590.0,121580.0,0.00275402]
[1759880905823,6.65495735,121590.0,121580.0,0.00275402]
[1759880906105,6.60318535,121590.0,121580.0,0.00275402]
[1759880906456,1.88900935,121590.0,121580.0,0.00275402]
[1759880906657,6.60318535,121590.0,121580.0,0.00275402]
[1759880906852,1.88900935,121590.0,121580.0,0.00275402]
[1759880907055,6.81890535,121590.0,121580.0,0.00275402]
[1759880907274,2.12236935,121590.0,121580.0,0.00275402]
[1759880907467,6.81890535,121590.0,121580.0,0.00275402]
[1759880907673,6.77600335,121590.0,121580.0,0.00275402]
[1759880908143,6.60968935,121590.0,121580.0,0.00275402]
[1759880908282,6.69990135,121590.0,121580.0,0.00275402]
[1759880908506,6.68580635,121590.0,121580.0,0.00275402]
[1759880909167,2.12236935,121590.0,121580.0,0.00275402]
[1759880909390,6.59476035,121590.0,121580.0,0.00275402]
[1759880909601,7.12568035,121590.0,121580.0,0.00275402]
[1759880909814,7.12636035,121590.0,121580.0,0.00275402]
[1759880910231,7.19636035,121590.0,121580.0,0.00275402]
[1759880910653,7.52351435,121590.0,121580.0,0.00275402]
[1759880910860,7.94150099,121590.0,121580.0,0.00275402]
[1759880911971,7.99554699,121590.0,121580.0,1e-08]
[1759880912175,8.02054698,121590.0,121580.0,1e-08]
[1759880912563,3.13100198,121590.0,121580.0,1e-08]
[1759880912754,8.02054698,121590.0,121580.0,1e-08]
[1759880913236,7.44490698,121590.0,121580.0,1e-08]
[1759880913380,8.10614698,121590.0,121580.0,1e-08]
[1759880913775,3.21660198,121590.0,121580.0,1e-08]
[1759880914109,8.10614698,121590.0,121580.0,1e-08]
[1759880914521,3.24281487,121590.0,121580.0,1e-08]
[1759880914686,8.13235987,121590.0,121580.0,1e-08]
[1759880915111,2.58157487,121590.0,121580.0,1e-08]
[1759880915296,6.79283995,121590.0,121580.0,1e-08]
[1759880915660,8.13235987,121590.0,121580.0,0.00200001]
[1759880917201,7.47111987,121590.0,121580.0,0.00200001]
[1759880917455,8.13235987,121590.0,121580.0,0.00200001]
[1759880917660,3.24281487,121590.0,121580.0,0.00200001]
[1759880917819,8.13235987,121590.0,121580.0,0.00200001]
[1759880918220,7.47111987,121590.0,121580.0,0.00200001]
[1759880918420,6.76978625,121590.0,121580.0,0.00200001]
[1759880918670,7.19766625,121590.0,121580.0,0.00200001]
[1759880919283,7.28429625,121590.0,121580.0,0.00200001]
[1759880919522,7.19766625,121590.0,121580.0,0.00200001]
[1759880921212,7.16751435,121590.0,121580.0,0.00200001]
[1759880921474,7.16755435,121590.0,121580.0,0.00200001]
[1759880922210,2.27800935,121590.0,121580.0,0.00200001]
[1759880922741,7.16755435,121590.0,121580.0,0.00200001]
[1759880922944,2.27800935,121590.0,121580.0,0.00200001]
[1759880923152,7.16755435,121590.0,121580.0,0.00200001]
[1759880923515,6.75724734,121590.0,121580.0,0.00200001]
[1759880923718,7.18516734,121590.0,121580.0,0.00200001]
[1759880924213,7.20045569,121590.0,121580.0,0.00200001]
[1759880924712,7.19281404,121590.0,121580.0,0.00200001]
[1759880924874,7.20810745,121590.0,121580.0,0.00200001]
[1759880925279,2.73654909,121590.0,121580.0,0.00200001]
[1759880925508,7.62609409,121590.0,121580.0,0.00200001]
[1759880927576,2.73654909,121590.0,121580.0,0.00200001]
[1759880927796,2.07526909,121590.0,121580.0,0.00200001]
[1759880928017,7.62609409,121590.0,121580.0,0.00200001]
[1759880929421,2.73654909,121590.0,121580.0,0.00200001]
[1759880929629,7.62609409,121590.0,121580.0,0.00200001]
[1759880930450,2.76044319,121590.0,121580.0,0.00200001]
[1759880930654,7.67620108,121590.0,121580.0,0.00200001]
[1759880930898,7.65858809,121590.0,121580.0,0.00200001]
[1759880931085,7.67619031,121590.0,121580.0,0.00200001]
[1759880931841,2.78664531,121590.0,121580.0,0.00200001]
[1759880932183,7.79297221,121590.0,121580.0,1e-08]
[1759880932380,9.04803802,121590.0,121580.0,1e-08]
[1759880932596,7.83997497,121590.0,121580.0,1e-08]
[1759880934039,7.75334497,121590.0,121580.0,1e-08]
[1759880934239,7.7313422,121590.0,121580.0,1e-08]
[1759880934446,2.8417972,121590.0,121580.0,1e-08]
[1759880934751,7.7313422,121590.0,121580.0,1e-08]
[1759880935111,2.8417972,121590.0,121580.0,1e-08]
[1759880935403,7.7313422,121590.0,121580.0,1e-08]
[1759880935597,2.8417972,121590.0,121580.0,1e-08]
[1759880935797,7.7313422,121590.0,121580.0,1e-08]
[1759880936579,7.70512931,121590.0,121580.0,1e-08]
[1759880937571,2.81558431,121590.0,121580.0,1e-08]
[1759880937880,7.70512931,121590.0,121580.0,1e-08]
[1759880938081,1.56162439,121590.0,121580.0,1e-08]
[1759880938278,7.70512931,121590.0,121580.0,1e-08]
[1759880939131,2.81558431,121590.0,121580.0,1e-08]
[1759880939313,7.70512931,121590.0,121580.0,1e-08]
[1759880939712,2.81558431,121590.0,121580.0,1e-08]
[1759880939917,7.70512931,121590.0,121580.0,1e-08]
[1759880941077,2.81558431,121590.0,121580.0,1e-08]
[1759880941250,7.70512931,121590.0,121580.0,1e-08]
[1759880942432,7.04384124,121590.0,121580.0,1e-08]
[1759880942786,7.68122714,121590.0,121580.0,1e-08]
[1759880943004,2.13040214,121590.0,121580.0,1e-08]
[1759880943139,7.12966151,121590.0,121580.0,1e-08]
[1759880943340,7.68122714,121590.0,121580.0,1e-08]
[1759880943553,2.79168214,121590.0,121580.0,1e-08]
[1759880943753,7.68122714,121590.0,121580.0,1e-08]
[1759880943974,2.79168214,121590.0,121580.0,1e-08]
[1759880944202,7.68122714,121590.0,121580.0,1e-08]
[1759880945303,2.13040214,121590.0,121580.0,1e-08]
[1759880945525,7.68118714,121590.0,121580.0,1e-08]
[1759880945713,2.79164214,121590.0,121580.0,1e-08]
[1759880945907,7.68118714,121590.0,121580.0,1e-08]
[1759880946110,2.79164214,121590.0,121580.0,1e-08]
[1759880946350,7.68118714,121590.0,121580.0,1e-08]
[1759880946731,2.79164214,121590.0,121580.0,1e-08]
[1759880947174,2.37423224,121590.0,121580.0,1e-08]
[1759880947382,7.26377724,121590.0,121580.0,1e-08]
[1759880947703,7.68205225,121590.0,121580.0,1e-08]
[1759880947919,2.84261424,121590.0,121580.0,1e-08]
[1759880948131,6.77745464,121580.0,121570.0,1e-08]
[1759880948338,7.29110275,121580.0,121570.0,1e-08]
[1759880948557,7.29823275,121580.0,121570.0,1e-08]
[1759880948789,7.29823275,121580.0,121540.0,0.06619503]
[1759880948790,5.39408634,121550.0,121540.0,0.06619503]
[1759880949000,6.69577423,121550.0,121540.0,0.06619503]
[1759880949223,6.84071485,121550.0,121540.0,0.06619503]
[1759880949430,6.84071485,121550.0,121530.0,0.002]
[1759880949431,5.39409987,121540.0,121530.0,0.002]
[1759880949634,6.90474151,121540.0,121530.0,0.002]
[1759880949842,6.92079151,121540.0,121530.0,0.002]
[1759880950057,2.03124651,121540.0,121530.0,0.002]
[1759880950261,7.00078831,121540.0,121530.0,0.002]
[1759880950674,7.00678831,121540.0,121530.0,0.003]
[1759880951762,2.11724331,121540.0,121530.0,0.018]
[1759880951959,7.00678831,121540.0,121530.0,0.018]
[1759880953772,2.11724331,121540.0,121530.0,0.018]
[1759880953981,7.02437971,121540.0,121530.0,0.018]
[1759880954615,2.19557415,121540.0,121530.0,0.018]
[1759880954816,7.10983788,121540.0,121530.0,0.018]
[1759880955049,7.09224648,121540.0,121530.0,0.02005459]
[1759880955249,2.20270148,121540.0,121530.0,0.02005459]
[1759880955649,7.09224648,121540.0,121530.0,0.02005459]
[1759880956479,2.20270148,121540.0,121530.0,0.02005459]
[1759880956680,5.68001646,121540.0,121530.0,0.02005459]
[1759880956922,7.17796648,121540.0,121530.0,0.02005459]
[1759880957308,7.61956648,121540.0,121530.0,0.02005459]
[1759880958976,2.74758582,121540.0,121530.0,0.02005459]
[1759880959176,7.63713082,121540.0,121530.0,0.02005459]
[1759880959411,2.74758582,121540.0,121530.0,0.02005459]
[1759880959835,7.42756565,121540.0,121530.0,0.02005459]
[1759880960190,7.59212052,121540.0,121530.0,0.02005459]
[1759880961327,2.70257552,121540.0,121530.0,0.02005459]
[1759880961543,7.59212052,121540.0,121530.0,0.02005459]
[1759880961737,2.70257552,121540.0,121530.0,0.02005459]
[1759880961938,7.59212052,121540.0,121530.0,0.02005459]
[1759880963820,2.70257552,121540.0,121530.0,0.02005459]
[1759880964022,2.75950942,121540.0,121530.0,0.02005459]
[1759880964235,7.2765947,121540.0,121530.0,0.02005459]
[1759880964466,6.6151947,121540.0,121530.0,0.02005459]
[1759880964658,7.22652771,121540.0,121530.0,0.02005459]
[1759880964808,6.56508771,121540.0,121530.0,0.02005459]
[1759880965012,2.33698271,121540.0,121530.0,0.02005459]
[1759880965415,7.22647513,121540.0,121530.0,0.02005459]
[1759880965644,6.56503513,121540.0,121530.0,0.02005459]
[1759880965838,7.22647513,121540.0,121530.0,0.02005459]
[1759880966465,0.5045955,121510.0,121500.0,4.43081113]
[1759880966602,1.78792851,121510.0,121500.0,4.43081113]
[1759880966974,1.78792851,121510.0,121500.0,4.42163113]
[1759880967671,1.78801133,121510.0,121500.0,4.42163113]
[1759880967907,1.78801133,121510.0,121500.0,4.46063113]
[1759880968072,1.78801133,121510.0,121500.0,4.46863113]
[1759880968289,1.78901133,121510.0,121500.0,4.46863113]
[1759880969141,1.78901133,121510.0,121500.0,4.49366113]
[1759880969142,1.37788933,121510.0,121500.0,4.49366113]
[1759880969371,0.95961432,121510.0,121500.0,4.49366113]
[1759880969575,1.37788933,121510.0,121500.0,4.49366113]
[1759880970528,1.37788933,121510.0,121500.0,4.46863113]
[1759880972091,1.37788933,121510.0,121500.0,4.47017271]
[1759880972219,1.44788933,121510.0,121500.0,4.47017271]
[1759880972446,1.44788933,121510.0,121500.0,4.49520271]
[1759880972997,0.80903832,121510.0,121500.0,4.52908271]
[1759880973136,1.31291333,121510.0,121500.0,4.54822271]
[1759880973338,1.45072033,121510.0,121500.0,4.54822271]
[1759880973544,1.45785033,121510.0,121500.0,4.47017271]
[1759880973743,1.46231033,121510.0,121500.0,4.47017271]
[1759880974429,1.53784713,121510.0,121500.0,4.47017271]
[1759880974635,1.54230713,121510.0,121500.0,4.47017271]
[1759880975779,1.12403212,121510.0,121500.0,4.47017271]
[1759880975986,1.53784713,121510.0,121500.0,4.47017271]
[1759880976346,1.45785033,121510.0,121500.0,4.47017271]
[1759880976544,1.88504534,121510.0,121500.0,4.47017271]
[1759880976752,1.46231033,121510.0,121500.0,4.47017271]
[1759880977178,1.47759884,121510.0,121500.0,4.47017271]
[1759880978360,1.47761284,121510.0,121500.0,4.47017271]
[1759880984964,1.47315284,121510.0,121500.0,4.47017271]
[1759880986515,1.05487783,121510.0,121500.0,4.47932271]
[1759880986716,1.47315284,121510.0,121500.0,4.47017271]
[1759880986930,1.47315948,121510.0,121500.0,4.47017271]
[1759880987701,1.97589129,121510.0,121500.0,4.47017271]
[1759880987990,3.80140729,121510.0,121500.0,4.47017271]
[1759880988226,3.81503029,121510.0,121500.0,4.47017271]
[1759880988419,3.82791829,121510.0,121500.0,4.47017271]
[1759880988618,3.88055829,121510.0,121500.0,4.47017271]
[1759880988827,3.82791829,121510.0,121500.0,4.47017271]
[1759880989049,3.84226729,121510.0,121500.0,4.47017271]
[1759880989261,3.64876629,121510.0,121500.0,4.47017271]
[1759880989496,3.85991229,121510.0,121500.0,4.47017271]
[1759880989713,6.04016429,121510.0,121500.0,4.47017271]
[1759880989945,6.05780429,121510.0,121500.0,4.47017271]
[1759880990148,1.84254429,121510.0,121500.0,4.47017271]
[1759880990397,6.10187729,121510.0,121500.0,4.47017271]
[1759880990533,6.13289429,121510.0,121500.0,4.47017271]
[1759880990829,1.84254429,121510.0,121500.0,4.47017271]
[1759880991077,6.19958129,121510.0,121500.0,4.47017271]
[1759880991581,6.19382629,121510.0,121500.0,4.47017271]
[1759880991793,6.73208929,121510.0,121500.0,4.47017271]
[1759880992044,6.83284587,121510.0,121500.0,4.47017271]
[1759880993101,6.83184587,121510.0,121500.0,4.46217271]
[1759880993315,6.83184587,121510.0,121500.0,4.42417271]
[1759880993517,6.83784587,121510.0,121500.0,4.42417271]
[1759880993736,6.86405876,121510.0,121500.0,4.42717271]
[1759880994114,1.97451376,121510.0,121500.0,4.42717271]
[1759880994292,6.86405876,121510.0,121500.0,4.42717271]
[1759880995113,1.97451376,121510.0,121500.0,4.42717271]
[1759880995363,6.20594074,121510.0,121500.0,4.42717271]
[1759880995558,7.20657876,121510.0,121500.0,4.42717271]
[1759880995952,7.20657876,121510.0,121500.0,3.90251415]
[1759880995953,7.68000566,121510.0,121500.0,3.90251415]
[1759880996166,2.81435476,121510.0,121500.0,3.7993611]
[1759880996381,7.28562475,121510.0,121500.0,3.68328839]
[1759880996594,7.70389976,121510.0,121500.0,3.39837947]
[1759880996804,7.711547,121510.0,121500.0,3.26607372]
[1759880997010,7.711547,121510.0,121500.0,3.03690889]
[1759880997232,7.94757422,121510.0,121500.0,2.37458458]
[1759880997445,8.50879275,121510.0,121500.0,2.34988306]
[1759880997655,8.58839275,121510.0,121500.0,1.65835369]
[1759880997866,8.58839275,121510.0,121500.0,1.53342245]
[1759880998074,8.17831275,121510.0,121500.0,1.41459985]
[1759880998283,8.62448178,121510.0,121500.0,1.38989833]
[1759880998491,7.62036178,121510.0,121500.0,1.36519681]
[1759880998695,3.73493678,121510.0,121500.0,0.79205294]
[1759880998904,8.62448178,121510.0,121500.0,0.63025805]
[1759880999107,8.53785178,121510.0,121500.0,0.43775978]
[1759880999311,8.51985178,121510.0,121500.0,0.41105826]
[1759880999518,8.53785178,121510.0,121500.0,0.38835674]
[1759880999761,5.41916759,121490.0,121480.0,0.0022]
[1759880999966,6.68311913,121490.0,121480.0,0.0022]
[1759881000177,7.12736913,121490.0,121480.0,0.0022]
[1759881000432,7.12736913,121490.0,121450.0,0.00027]
[1759881000433,0.50466326,121460.0,121450.0,0.00027]
[1759881000677,0.16467682,121450.0,121440.0,0.01374472]
[1759881000934,0.55984227,121440.0,121430.0,1e-08]
[1759881001170,1.23592225,121440.0,121430.0,1e-08]
[1759881001412,2.5737669,121440.0,121430.0,1e-08]
[1759881001599,0.62971747,121420.0,121410.0,1e-08]
[1759881001815,7.25521828,121420.0,121410.0,1e-08]
[1759881002035,6.86324313,121420.0,121410.0,1e-08]
[1759881002273,6.46895883,121420.0,121410.0,1e-08]
[1759881002530,4.81845113,121420.0,121410.0,1e-08]
[1759881002753,3.85216893,121420.0,121410.0,1e-08]
[1759881002972,4.77848213,121420.0,121410.0,1e-08]
[1759881003219,5.79459013,121420.0,121410.0,1e-08]
[1759881003467,4.86227228,121420.0,121410.0,1e-08]
[1759881003706,1.48779428,121420.0,121410.0,1e-08]
[1759881003910,2.27334749,121420.0,121410.0,0.03300001]
[1759881004150,2.81219858,121420.0,121410.0,0.03300001]
[1759881004384,0.19043808,121420.0,121410.0,0.09082001]
[1759881004618,0.23209811,121420.0,121410.0,0.08705001]